{"text_format":"1","workbook":"xlsx","n_sheets":8,"sheets":["Carriers","Master","Recital A Draft","Recital A","Recital B Draft","Recital B","Recital C Draft","Recital C"],"not_rendered":{"charts":0,"images":1,"macros":1,"external_links":0,"defined_names":14,"comments":1,"pivot_tables":0},"unopened":[],"bounds":{"document_bytes":16777216,"sheet_cells":100000,"rows_first":2000,"rows_last":500,"rows_between":2000,"halvings":0,"cell_chars":16384,"cell_head_chars":4096},"cells_cut":0,"cells_raw":0,"read":"whole","date_system":"1900"}

{"sheet":"Carriers","index":0,"n_rows":9,"n_cols":2,"rows_kept":9,"cut":false,"hidden":true,"merged":[]}
["Alltel","message.alltel.com"]
["AT&T","txt.att.net"]
["Boost Mobile","myboostmobile.com"]
["Nextel","messaging.nextel.com"]
["Sprint","messaging.sprintpcs.com"]
["T-Mobile","tmomail.net "]
["US Cellular","email.uscc.net"]
["Verizon","vtext.com"]
["Virgin Mobile","vmobl.com "]

{"sheet":"Master","index":1,"n_rows":25,"n_cols":15,"rows_kept":25,"cut":false,"hidden":false,"merged":[]}
[null,"<RECITAL DATE>","2016-05-07",null,"Recital Times","Performances"]
[null,null,null,null,"10:30 AM",{"$f":"SUM(IF(N:N = $E2,O:O, 0))","v":18}]
[null,null,null,null,"1:00 PM",{"$f":"SUM(IF(N:N = $E3,O:O, 0))","v":16}]
[null,null,null,null,"3:30 PM",{"$f":"SUM(IF(N:N = $E4,O:O, 0))","v":10}]
[]
["Message Sent","<PARENT FIRSTNAME>","<PARENT LASTNAME>","Email address","<CHILD 1 NAME>","<CHILD 1 SONG>","<CHILD 2 NAME>","<CHILD 2 SONG>","<CHILD 3 NAME>","<CHILD 3 SONG>","<CHILD 4 NAME>","<CHILD 4 SONG>","Responded?","<ASSIGNED TIME>","How many?"]
["2016-04-13T21:38:02","Evelyn","Sabo","MadeUpAddress@gmail.com","Betty","Pink Panther","Nick","Hobbits","Richard","Elfking","Dallas","Lord of the Rings","Yes","1:00 PM",{"$f":"COUNTA($F7, $H7, $J7, $L7)","v":4}]
[null,"Susan","Kisslinger","MadeUpAddress@gmail.com","Larry","The Incredibles","Janet",null,"William",null,null,null,"No","1:00 PM",{"$f":"COUNTA($F8, $H8, $J8, $L8)","v":1}]
[null,"Tom","Mcclellan","MadeUpAddress@gmail.com","Allison","The Entertainer",null,null,null,null,null,null,"No","1:00 PM",1]
[null,"Beverly","Stokley","MadeUpAddress@gmail.com","Joseph","Chronicles of Narnia","Robert","Beethoven",null,null,null,null,"No","1:00 PM",2]
[null,"Brittney","Booth","MadeUpAddress@gmail.com","Robert","Lord of the Rings","Patricia","Sonata No. 2","Herbert","Chronicles of Narnia",null,null,"No","3:30 PM",3]
["2016-04-13T21:38:04","Ronnie","Pruett","MadeUpAddress@gmail.com","Melanie","Hobbits",null,null,null,null,null,null,"Yes","10:30 AM",1]
[null,"Orbit","Baeten","MadeUpAddress@gmail.com","Raymond","Elfking","Jason","Claire de Lune","Larry","The Entertainer","Boe","The Entertainer","No","10:30 AM",4]
["2016-04-13T21:38:07","Angelo","Camarano","MadeUpAddress@gmail.com","Andy","Bach","Kim","The Entertainer",null,null,null,null,"Yes","1:00 PM",2]
[null,"Russell","Walter","MadeUpAddress@gmail.com","Brian","Beethoven","Matt","Chronicles of Narnia",null,null,null,null,"No","1:00 PM",2]
[null,"Michael","Thelen","MadeUpAddress@gmail.com","Romy","Sonata No. 2","Michael","Lord of the Rings",null,null,null,null,"No","10:30 AM",2]
[null,"Socrates","Sagris","MadeUpAddress@gmail.com","Ernst","Pink Panther","Vera","Hobbits","James","Sonata No. 2",null,null,"No","3:30 PM",3]
["2016-04-13T21:38:09","Norma","Bender","MadeUpAddress@gmail.com","Edgar","Claire de Lune",null,null,null,null,null,null,"Yes","1:00 PM",1]
["2016-04-13T21:38:12","Kathy","Graves","MadeUpAddress@gmail.com","Leslie","The Entertainer","Henry","Hobbits","Mary","Maple Leaf Rag","Hansen","Maple Leaf Rag","Yes","3:30 PM",4]
[null,"Edrick","Grier","MadeUpAddress@gmail.com","Jason","Chronicles of Narnia","Norma","Elfking",null,null,null,null,"No","1:00 PM",2]
["2016-04-13T21:38:14","Francisco","Sanchez","MadeUpAddress@gmail.com","Johnny","Lord of the Rings","Joyce","Bach",null,null,null,null,"Yes","10:30 AM",2]
[null,"Lewis","Gelinas","MadeUpAddress@gmail.com","Heikki","Hobbits","Dennis","Beethoven",null,null,null,null,"No","10:30 AM",2]
[null,"Chuck","Ahearn","MadeUpAddress@gmail.com","Kurt","Elfking","Ian","Sonata No. 2","Randy","Beethoven","Poe","Beethoven","No","10:30 AM",4]
[null,"Lloyd","Hare","MadeUpAddress@gmail.com","Tom","Bach",null,null,null,null,null,null,"No","1:00 PM",1]
["2016-04-13T21:38:16","Shawn","Hill","MadeUpAddress@gmail.com","Dee","Beethoven","Robert","Bach","Roger","Hobbits",null,null,"Yes","10:30 AM",3]

{"sheet":"Recital A Draft","index":2,"n_rows":20,"n_cols":3,"rows_kept":20,"cut":false,"hidden":false,"merged":[]}
[null,"Recital Time:","10:30:00"]
[null,"Student","Performing"]
[null,"Melanie Pruett ","Hobbits"]
[null,"Raymond Baeten ","Elfking"]
[null,"Jason Baeten ","Claire de Lune"]
[null,"Larry Baeten ","The Entertainer"]
[null,"Romy Thelen ","Sonata No. 2"]
[null,"Michael Thelen ","Lord of the Rings"]
[null,"Joyce Sanchez ","Bach"]
[null,"Johnny Sanchez","Lord of the Rings"]
[null,"Joyce Sanchez","Bach"]
[null,"Heikki Gelinas","Hobbits"]
[null,"Dennis Gelinas","Beethoven"]
[null,"Kurt Ahearn","Elfking"]
[null,"Ian Ahearn","Sonata No. 2"]
[null,"Randy Ahearn","Beethoven"]
[null,"Poe Ahearn","Beethoven"]
[null,"Dee Hill","Beethoven"]
[null,"Robert Hill","Bach"]
[null,"Roger Hill","Hobbits"]

{"sheet":"Recital A","index":3,"n_rows":43,"n_cols":2,"rows_kept":43,"cut":false,"hidden":false,"merged":[]}
[]
[]
[]
[]
[]
[]
[]
[null,"PIANO ACADEMY RECITAL"]
[null,"MAY 7, 2016"]
[null,"10:30:00"]
[]
[null,"Melanie Pruett  - Hobbits"]
[null,"Raymond Baeten  - Elfking"]
[null,"Jason Baeten  - Claire de Lune"]
[null,"Larry Baeten  - The Entertainer"]
[null,"Romy Thelen  - Sonata No. 2"]
[null,"Michael Thelen  - Lord of the Rings"]
[null,"Joyce Sanchez  - Bach"]
[null,"Johnny Sanchez - Lord of the Rings"]
[null,"Joyce Sanchez - Bach"]
[null,"Heikki Gelinas - Hobbits"]
[null,"Dennis Gelinas - Beethoven"]
[null,"Kurt Ahearn - Elfking"]
[null,"Ian Ahearn - Sonata No. 2"]
[null,"Randy Ahearn - Beethoven"]
[null,"Poe Ahearn - Beethoven"]
[null,"Dee Hill - Beethoven"]
[null,"Robert Hill - Bach"]
[null,"Roger Hill - Hobbits"]
[null,"Ernst Sagris - Pink Panther"]
[null,"Vera Sagris - Hobbits"]
[null,"James Sagris - Sonata No. 2"]
[null,"Johnny Sanchez - Lord of the Rings"]
[null,"Joyce Sanchez - Bach"]
[null,"Heikki Gelinas - Hobbits"]
[null,"Dennis Gelinas - Beethoven"]
[null,"Kurt Ahearn - Elfking"]
[null,"Ian Ahearn - Sonata No. 2"]
[null,"Randy Ahearn - Beethoven"]
[null,"Poe Ahearn - Beethoven"]
[null,"Dee Hill - Beethoven"]
[null,"Robert Hill - Bach"]
[null,"Roger Hill - Hobbits"]

{"sheet":"Recital B Draft","index":4,"n_rows":18,"n_cols":3,"rows_kept":18,"cut":false,"hidden":false,"merged":[]}
[null,"Recital Time:","13:00:00"]
[null,"Student","Performing"]
[null,"Betty Sabo","Pink Panther"]
[null,"Nick Sabo","Hobbits"]
[null,"Richard Sabo","Elfking"]
[null,"Dallas Sabo","Lord of the Rings"]
[null,"Larry Kisslinger","The Incredibles"]
[null,"Allison Mcclellan","The Entertainer"]
[null,"Joseph Stokley","Chronicles of Narnia"]
[null,"Robert Stokley","Beethoven"]
[null,"Andy Camarano","Bach"]
[null,"Kim Camarano","The Entertainer"]
[null,"Brian Walter","Beethoven"]
[null,"Matt Walter","Chronicles of Narnia"]
[null,"Edgar Bender","Claire de Lune"]
[null,"Jason Grier","Chronicles of Narnia"]
[null,"Norma Grier","Elfking"]
[null,"Tom Hare","Bach"]

{"sheet":"Recital B","index":5,"n_rows":25,"n_cols":2,"rows_kept":25,"cut":false,"hidden":false,"merged":[]}
[]
[]
[]
[]
[]
[]
[]
[null,"PIANO ACADEMY RECITAL"]
[null,"MAY 7, 2016"]
[null,"13:00:00"]
[]
[null,"Allison Mcclellan - The Entertainer"]
[null,"Joseph Stokley - Chronicles of Narnia"]
[null,"Robert Stokley - Beethoven"]
[null,"Edgar Bender - Claire de Lune"]
[null,"Jason Grier - Chronicles of Narnia"]
[null,"Norma Grier - Elfking"]
[null,"Tom Hare - Bach"]
[null,"Kim Camarano - The Entertainer"]
[null,"Romy Thelen - Sonata No. 2"]
[null,"Michael Thelen - Lord of the Rings"]
[null,"Edgar Bender - Claire de Lune"]
[null,"Jason Grier - Chronicles of Narnia"]
[null,"Norma Grier - Elfking"]
[null,"Tom Hare - Bach"]

{"sheet":"Recital C Draft","index":6,"n_rows":12,"n_cols":3,"rows_kept":12,"cut":false,"hidden":false,"merged":[]}
[null,"Recital Time:","15:30:00"]
[null,"Student","Performing"]
[null,"Robert Booth","Lord of the Rings"]
[null,"Patricia Booth","Sonata No. 2"]
[null,"Herbert Booth","Chronicles of Narnia"]
[null,"Ernst Sagris","Pink Panther"]
[null,"Vera Sagris","Hobbits"]
[null,"James Sagris","Sonata No. 2"]
[null,"Leslie Graves","The Entertainer"]
[null,"Henry Graves","Hobbits"]
[null,"Mary Graves","Maple Leaf Rag"]
[null,"Hansen Graves","Maple Leaf Rag"]

{"sheet":"Recital C","index":7,"n_rows":26,"n_cols":2,"rows_kept":26,"cut":false,"hidden":false,"merged":[]}
[]
[]
[]
[]
[]
[]
[]
[null,"PIANO ACADEMY RECITAL"]
[null,"MAY 7, 2016"]
[null,"15:30:00"]
[]
[null,"Robert Booth - Lord of the Rings"]
[null,"Patricia Booth - Sonata No. 2"]
[null,"Herbert Booth - Chronicles of Narnia"]
[null,"Leslie Graves - The Entertainer"]
[null,"Henry Graves - Hobbits"]
[null,"Mary Graves - Maple Leaf Rag"]
[null,"Hansen Graves - Maple Leaf Rag"]
[null,"Raymond Baeten - Elfking"]
[null,"Jason Baeten - Claire de Lune"]
[null,"Larry Baeten - The Entertainer"]
[null,"Boe Baeten - The Entertainer"]
[null,"Leslie Graves - The Entertainer"]
[null,"Henry Graves - Hobbits"]
[null,"Mary Graves - Maple Leaf Rag"]
[null,"Hansen Graves - Maple Leaf Rag"]